bitfinex-derivatives/quotes_SOLF0:USTF0_20250312
["timestamp","ask_amount","ask_price","bid_price","bid_amount"]
[1741810450180,20.85339872,124.65,124.56,31.34]
[1741810450384,20.85339872,124.65,124.57,20.85339872]
[1741810450587,35.3655,124.66,124.57,20.85339872]
[1741810450987,35.3655,124.66,124.62,8.0257]
[1741810450988,0.06082574,124.63,124.62,8.0257]
[1741810451189,0.06082574,124.63,124.59,31.34]
[1741810451392,8.08602574,124.63,124.61,0.05979392]
[1741810451590,0.06082574,124.63,124.61,0.05979392]
[1741810453794,0.06082574,124.63,124.61,8.08619392]
[1741810456396,0.06082574,124.63,124.62,8.0258]
[1741810456693,0.06082574,124.63,124.61,0.05979392]
[1741810457093,0.06082574,124.63,124.62,8.0258]
[1741810457496,0.06082574,124.63,124.62,39.3658]
[1741810461809,2.574e-05,124.63,124.62,39.3658]
[1741810468213,2.574e-05,124.63,124.62,52.7144197]
[1741810468816,2.574e-05,124.63,124.62,39.3658]
[1741810470913,2.574e-05,124.63,124.62,52.7144197]
[1741810474019,2.574e-05,124.63,124.62,39.3658]
[1741810478620,2.574e-05,124.63,124.62,8.0258]
[1741810485534,8.02532574,124.63,124.61,0.05979392]
[1741810486729,2.574e-05,124.63,124.61,0.05979392]
[1741810486922,8.0258,124.62,124.61,0.05979392]
[1741810487328,21.3744197,124.62,124.61,0.05979392]
[1741810487625,13.3486197,124.62,124.55,4.0787]
[1741810487830,21.3767197,124.59,124.54,144.09483967]
[1741810488025,13.3486197,124.59,124.54,110.60973967]
[1741810488329,13.3486197,124.57,124.54,110.60973967]
[1741810488830,0.05962246,124.57,124.55,13.3486197]
[1741810489429,0.05962246,124.57,124.56,8.0295]
[1741810492231,0.05962246,124.57,124.56,39.3495]
[1741810493526,2.246e-05,124.57,124.56,39.3495]
[1741810494026,2.246e-05,124.57,124.56,60.22823751]
[1741810496136,1.9938,124.64,124.63,8.0251]
[1741810496832,2.085,124.67,124.59,31.32]
[1741810497230,0.05858237,124.64,124.62,0.055762]
[1741810497429,0.05858237,124.64,124.63,8.0251]
[1741810498136,8.237e-05,124.64,124.63,8.0251]
[1741810501534,8.237e-05,124.64,124.63,10.0756]
[1741810502540,8.237e-05,124.64,124.63,14.2857]
[1741810503327,240.76,124.72,124.63,6.2606]
[1741810503532,20.87873751,124.73,124.7,8.0206]
[1741810504230,20.87873751,124.73,124.67,31.3]
[1741810504538,0.05732085,124.71,124.69,0.0511261]
[1741810506038,0.05732085,124.71,124.69,8.0720261]
[1741810506438,0.05732085,124.71,124.69,0.0511261]
[1741810507940,0.05732085,124.71,124.69,8.0723261]
[1741810508139,0.05732085,124.71,124.69,0.0511261]
[1741810508741,20.93605836,124.71,124.65,31.3]
[1741810508938,4.2015,124.7,124.63,2.0505]
[1741810509140,4.2015,124.7,124.64,31.3]
[1741810509643,4.2015,124.7,124.67,8.0222]
[1741810509841,0.05780904,124.68,124.67,8.0222]
[1741810510341,0.05780904,124.68,124.66,0.05299185]
[1741810511243,0.05780904,124.68,124.67,8.0226]
[1741810513347,9.04e-06,124.68,124.67,8.0226]
[1741810514546,2.1145,124.75,124.67,4.2337]
[1741810514746,2.1145,124.75,124.69,20.87873751]
[1741810514944,2.1145,124.75,124.74,8.0181]
[1741810515143,2.0291,124.77,124.71,31.28]
[1741810515447,2.0291,124.77,124.71,52.15873751]
[1741810515642,0.05449104,124.75,124.73,0.05507222]
[1741810515842,0.05449104,124.75,124.74,31.28]
[1741810516046,0.05449104,124.75,124.73,0.05507222]
[1741810516243,20.93322855,124.75,124.73,0.05507222]
[1741810516443,0.05449104,124.75,124.73,0.05507222]
[1741810517643,20.93322855,124.75,124.73,0.05507222]
[1741810517843,20.93322855,124.75,124.68,31.28]
[1741810518043,52.21322855,124.75,124.68,31.28]
[1741810518245,8.0184,124.74,124.69,8.0208]
[1741810518542,52.21322855,124.75,124.67,244.8537]
[1741810518744,22.89113751,124.73,124.67,271.9]
[1741810518948,0.06007234,124.72,124.7,0.05664075]
[1741810519341,8.02,124.71,124.7,0.05664075]
[1741810520246,60.17873751,124.71,124.6,20.87873751]
[1741810520437,20.87873751,124.7,124.6,20.87873751]
[1741810520839,8.0217,124.69,124.6,20.87873751]
[1741810521354,20.87873751,124.7,124.64,8.024]
[1741810521355,0.05754301,124.66,124.64,8.024]
[1741810521551,0.05754301,124.66,124.62,31.28]
[1741810521853,0.05754301,124.66,124.64,0.05782434]
[1741810523759,20.93628052,124.66,124.58,6.1034]
[1741810523959,23.05753751,124.66,124.58,6.1034]
[1741810524160,31.28,124.65,124.58,37.3834]
[1741810524562,2.1788,124.66,124.59,20.87873751]
[1741810524967,0.05234607,124.64,124.61,0.05274939]
[1741810525262,0.05234607,124.64,124.63,8.0247]
[1741810526560,0.05234607,124.64,124.62,8.0254]
[1741810527669,0.05234607,124.64,124.63,8.0251]
[1741810529271,0.05234607,124.64,124.62,8.0255]
[1741810530171,8.07694607,124.64,124.61,0.05274939]
[1741810530368,20.93108358,124.64,124.61,0.05274939]
[1741810530564,20.87873751,124.62,124.55,240.58]
[1741810530768,20.87873751,124.62,124.57,8.0285]
[1741810530769,8.0266,124.61,124.57,8.0285]
[1741810530972,22.98363751,124.62,124.55,31.28]
[1741810531161,8.0281,124.59,124.55,8.0301]
[1741810531361,20.87873751,124.58,124.51,23.08993751]
[1741810531669,30.97173751,124.58,124.54,8.0308]
[1741810531864,0.0538631,124.56,124.54,8.0308]
[1741810532068,20.93260061,124.56,124.53,0.05985467]
[1741810532567,23.07620061,124.56,124.53,0.05985467]
[1741810532766,31.10610061,124.56,124.53,0.05985467]
[1741810533068,20.87873751,124.54,124.5,33.07427246]
[1741810533267,20.87873751,124.52,124.49,81.67221738]
[1741810533467,20.87873751,124.49,124.47,220.77283742]
[1741810533664,31.28,124.48,124.47,220.77283742]
[1741810533867,31.28,124.48,124.41,37.70951588]
[1741810534169,31.28,124.48,124.43,8.038]
[1741810534373,0.05757221,124.46,124.43,0.04313615]
[1741810534869,0.05757221,124.46,124.45,8.0368]
[1741810535567,20.87873751,124.52,124.43,52.20187366]
[1741810535872,292.81873751,124.54,124.45,20.87873751]
[1741810536267,305.3975477,124.54,124.43,64.7375477]
[1741810536669,0.06044229,124.5,124.47,0.05314784]
[1741810536868,0.06044229,124.5,124.48,8.0348]
[1741810537170,0.06044229,124.5,124.47,0.05314784]
[1741810538768,0.06044229,124.5,124.49,8.0342]
[1741810539070,11.00545688,124.54,124.49,31.3]
[1741810539269,11.00545688,124.54,124.52,8.0318]
[1741810539470,11.00545688,124.54,124.49,31.3]
[1741810539873,64.7575477,124.58,124.49,31.3]
[1741810540079,0.05585124,124.53,124.5,0.05633158]
[1741810540272,0.05585124,124.53,124.49,31.3]
[1741810540576,0.05585124,124.53,124.52,8.0318]
[1741810541262,0.05585124,124.53,124.5,0.05605679]
[1741810541868,0.05585124,124.53,124.52,8.0322]
[1741810544574,0.05585124,124.53,124.51,8.0326]
[1741810545083,0.05585124,124.53,124.5,2.08405679]
[1741810545373,0.05585124,124.53,124.52,8.0322]
[1741810548481,0.05585124,124.53,124.5,2.08405679]
[1741810549082,0.05585124,124.53,124.51,8.0324]
[1741810549281,0.05585124,124.53,124.5,2.08405679]
[1741810549682,0.05585124,124.53,124.51,8.0323]
[1741810549980,0.05585124,124.53,124.5,2.08405679]
[1741810550283,0.05585124,124.53,124.52,8.0322]
[1741810550582,0.05585124,124.53,124.5,2.08405679]
[1741810550783,0.05585124,124.53,124.5,10.11725679]
[1741810550983,0.05585124,124.53,124.5,2.08405679]
[1741810551784,0.05585124,124.53,124.52,8.0322]
[1741810566998,123.87626531,124.55,124.52,31.28]
[1741810568000,88.71234633,124.56,124.52,31.28]
[1741810568199,0.05712876,124.55,124.52,31.28]
[1741810568493,0.05712876,124.55,124.53,0.05485025]
[1741810568699,0.05712876,124.55,124.54,8.0309]
[1741810572502,0.05712876,124.55,124.53,0.05485025]
[1741810573205,8.0309,124.54,124.53,0.05485025]
[1741810574305,8.0309,124.54,124.48,2.0555]
[1741810574306,8.0329,124.51,124.48,2.0555]
[1741810575202,8.0329,124.51,124.48,10.0899]
[1741810575401,8.09285181,124.51,124.48,10.14924745]
[1741810575601,8.09285181,124.51,124.48,0.05934745]
[1741810575902,8.09305181,124.51,124.48,0.05934745]
[1741810576204,0.05995181,124.51,124.48,0.05934745]
[1741810577298,0.05995181,124.51,124.5,8.0335]
[1741810577493,0.05995181,124.51,124.5,39.3135]
[1741810579011,25.53007987,124.54,124.53,8.0316]
[1741810580116,0.05559378,124.55,124.52,0.05121216]
[1741810580317,0.05559378,124.55,124.54,8.0309]
[1741810581414,0.05559378,124.55,124.52,0.05121216]
[1741810581915,0.05559378,124.55,124.53,8.0316]
[1741810582518,0.05559378,124.55,124.52,0.05121216]
[1741810584314,0.05559378,124.55,124.54,8.0309]
[1741810588421,9.378e-05,124.55,124.54,8.0309]
[1741810590524,122.00754633,124.63,124.53,52.17543437]
[1741810590722,122.00754633,124.63,124.6,8.0268]
[1741810591527,88.71234633,124.63,124.59,8.0274]
[1741810591721,88.76417318,124.63,124.6,0.05059923]
[1741810592729,8.07722685,124.63,124.6,0.05059923]
[1741810594229,0.05182685,124.63,124.6,8.07749923]
[1741810594432,0.05182685,124.63,124.6,0.05059923]
[1741810596534,0.05182685,124.63,124.6,20.9460336]
[1741810597729,0.05182685,124.63,124.62,8.0258]
[1741810598636,122.09954633,124.69,124.6,20.9460336]
[1741810598824,122.09954633,124.69,124.6,20.89543437]
[1741810599226,122.09954633,124.69,124.63,8.0247]
[1741810599429,122.09954633,124.69,124.62,31.24]
[1741810599430,122.07954633,124.69,124.62,31.24]
[1741810599630,0.05647328,124.67,124.64,0.05193141]
[1741810599833,0.05647328,124.67,124.66,8.023]
[1741810600933,0.05647328,124.67,124.64,20.94736578]
[1741810601137,0.05647328,124.67,124.65,31.24]
[1741810601432,0.05647328,124.67,124.64,0.05193141]
[1741810601636,0.05647328,124.67,124.64,8.07613141]
[1741810601944,0.05647328,124.67,124.64,0.05193141]
[1741810602433,0.05647328,124.67,124.65,8.0239]
[1741810603034,0.05647328,124.67,124.64,8.07613141]
[1741810603335,0.05647328,124.67,124.64,0.05193141]
[1741810603730,0.05647328,124.67,124.65,8.0238]
[1741810604236,0.05647328,124.67,124.66,8.0232]
[1741810604636,0.05647328,124.67,124.64,0.05193141]
[1741810604836,0.05647328,124.67,124.65,8.0235]
[1741810606033,0.05647328,124.67,124.66,8.0232]
[1741810610241,0.05647328,124.67,124.65,8.0236]
[1741810610739,0.05647328,124.67,124.64,22.97276578]
[1741810610941,0.05647328,124.67,124.64,0.05193141]
[1741810611336,8.07937328,124.67,124.64,0.05193141]
[1741810611935,0.05647328,124.67,124.65,8.0238]
[1741810612139,0.05647328,124.67,124.64,20.94736578]
[1741810613138,0.05647328,124.67,124.66,8.0232]
[1741810614146,0.05647328,124.67,124.66,39.2432]
[1741810614639,14.1669,124.74,124.7,8.0203]
[1741810614840,6.1485,124.74,124.66,52.11543437]
[1741810615444,6.1485,124.74,124.71,8.0198]
[1741810615840,6.20950242,124.74,124.71,8.0784978]
[1741810616040,14.22760242,124.74,124.71,8.0784978]
[1741810616242,14.22760242,124.74,124.71,0.0586978]
[1741810616540,8.0194,124.72,124.71,0.0586978]
[1741810616938,52.11543437,124.73,124.66,39.2429]
[1741810617732,52.11543437,124.73,124.66,31.22]
[1741810618140,0.05313808,124.71,124.68,0.05930151]
[1741810618738,0.05313808,124.71,124.69,8.0208]
[1741810618941,0.05313808,124.71,124.68,0.05930151]
[1741810619848,0.05313808,124.71,124.68,8.08090151]
[1741810620044,0.05313808,124.71,124.68,0.05930151]
[1741810620545,0.05313808,124.71,124.68,8.08090151]
[1741810620742,0.05313808,124.71,124.68,0.05930151]
[1741810621445,0.05313808,124.71,124.69,8.021]
[1741810622040,0.05313808,124.71,124.68,0.05930151]
[1741810622645,0.05313808,124.71,124.69,8.0209]
[1741810623352,0.05313808,124.71,124.68,0.05930151]
[1741810624044,0.05313808,124.71,124.7,8.0206]
[1741810624541,0.05313808,124.71,124.68,0.05930151]
[1741810624746,0.05313808,124.71,124.69,8.0209]
[1741810625243,0.05313808,124.71,124.7,8.0206]
[1741810625844,240.78,124.76,124.71,8.0199]
[1741810626248,8.0178,124.75,124.69,31.2]
[1741810626850,0.06154427,124.73,124.71,0.05596831]
[1741810627052,0.06154427,124.73,124.72,8.0193]
[1741810630053,11.06379815,124.79,124.72,52.09543437]
[1741810630248,11.06379815,124.79,124.75,8.017]
[1741810630544,44.24012508,124.79,124.72,52.09543437]
[1741810630745,65.13555945,124.79,124.72,31.2]
[1741810630948,20.89543437,124.77,124.72,31.2]
[1741810631348,0.06059005,124.76,124.73,0.05966548]
[1741810631752,8.0181,124.74,124.73,0.05966548]
[1741810637546,52.07543437,124.75,124.66,243.20121322]
[1741810637753,20.89543437,124.73,124.67,8.0223]
[1741810638055,20.89543437,124.71,124.64,246.7724]
[1741810638256,20.89543437,124.71,124.64,283.9689]
[1741810638549,20.89543437,124.71,124.64,43.3689]
[1741810638753,8.0232,124.67,124.66,0.0552976]
[1741810639050,20.89543437,124.67,124.61,31.18]
[1741810639257,20.89543437,124.67,124.61,8.0264]
[1741810639652,8.0234,124.66,124.6,31.18]
[1741810640253,28.91843437,124.67,124.62,8.0257]
[1741810640448,0.05712915,124.64,124.62,0.06040056]
[1741810640846,8.08192915,124.64,124.62,0.06040056]
[1741810641047,0.05712915,124.64,124.62,0.06040056]
[1741810642254,0.05712915,124.64,124.62,8.08620056]
[1741810642459,0.05712915,124.64,124.62,0.06040056]
[1741810645558,0.05712915,124.64,124.63,8.0251]
[1741810647764,2.915e-05,124.64,124.63,8.0251]
[1741810648465,77.61802508,124.72,124.62,41.8512693]
[1741810648664,77.61802508,124.72,124.65,20.89543437]
[1741810648866,44.24012508,124.72,124.66,31.18]
[1741810649071,44.24012508,124.72,124.69,8.0208]
[1741810649264,44.24012508,124.72,124.66,35.536]
[1741810649465,0.05204229,124.7,124.69,8.0213]
[1741810650165,0.05204229,124.7,124.68,8.07767186]
[1741810652073,0.05204229,124.7,124.68,0.05607186]
[1741810652677,0.05204229,124.7,124.68,8.07767186]
[1741810653982,8.0213,124.69,124.68,0.05607186]
[1741810655070,0.05204229,124.7,124.68,0.05607186]
[1741810655275,8.07304229,124.7,124.68,0.05607186]
[1741810655771,0.05204229,124.7,124.68,0.05607186]
[1741810656166,0.05204229,124.7,124.69,8.0213]
[1741810657480,0.05204229,124.7,124.69,39.2013]
[1741810658278,11.06379815,124.76,124.73,8.0185]
[1741810658474,11.06379815,124.77,124.73,8.0185]
[1741810658681,8.0172,124.76,124.69,52.07543437]
[1741810659081,11.06379815,124.77,124.71,8.0199]
[1741810659377,0.05464037,124.75,124.73,0.05654133]
[1741810660186,8.07254037,124.75,124.73,0.05654133]
[1741810660978,0.05464037,124.75,124.73,8.07494133]
[1741810661978,0.05464037,124.75,124.74,8.0181]
[1741810664386,0.05464037,124.75,124.73,8.07504133]
[1741810665180,0.05464037,124.75,124.74,8.0181]
[1741810669486,0.05464037,124.75,124.73,8.07494133]
[1741810669688,0.05464037,124.75,124.73,0.05654133]
[1741810669883,0.05464037,124.75,124.74,8.0181]
[1741810670688,0.05464037,124.75,124.74,39.1781]
[1741810674887,0.05464037,124.75,124.74,8.0181]
[1741810676795,0.05464037,124.75,124.74,21.34136561]
[1741810678597,13.32326561,124.81,124.74,13.32326561]
[1741810678792,13.32326561,124.81,124.76,13.32326561]
[1741810679091,13.32326561,124.8,124.75,44.46326561]
[1741810679295,8.0153,124.79,124.75,52.48036561]
[1741810679696,0.05374365,124.78,124.76,0.05568639]
[1741810679997,8.06924365,124.78,124.76,0.05568639]
[1741810680394,13.37700926,124.78,124.76,0.05568639]
[1741810680897,8.0161,124.77,124.76,0.05568639]
[1741810681289,0.05374365,124.78,124.76,0.05568639]
[1741810682301,13.32326561,124.83,124.77,13.32326561]
[1741810682493,8.0129,124.82,124.78,21.33836561]
[1741810682693,13.32326561,124.83,124.78,21.33836561]
[1741810682894,13.32326561,124.82,124.78,8.0151]
[1741810683297,8.0137,124.81,124.78,8.0151]
[1741810683596,0.05499039,124.81,124.79,8.07436848]
[1741810684994,0.05499039,124.81,124.79,0.05976848]
[1741810685196,0.05499039,124.81,124.79,8.07436848]
[1741810686498,8.0142,124.8,124.79,0.05976848]
[1741810686699,0.05499039,124.81,124.79,0.05976848]
[1741810689605,8.0142,124.8,124.79,0.05976848]
[1741810690208,8.06889039,124.81,124.79,0.05976848]
[1741810690707,0.05499039,124.81,124.79,0.05976848]
[1741810690908,8.06879039,124.81,124.79,0.05976848]
[1741810691610,0.05499039,124.81,124.79,0.05976848]
[1741810691811,8.0142,124.8,124.79,0.05976848]
[1741810697206,8.0174,124.76,124.74,31.12]
[1741810697712,8.0174,124.75,124.74,31.12]
[1741810698102,20.80611503,124.8,124.74,31.12]
[1741810698306,0.05925251,124.76,124.74,39.1374]
[1741810698507,0.05925251,124.76,124.74,51.92611503]
[1741810698714,0.05925251,124.76,124.74,51.98722657]
[1741810699010,0.05925251,124.76,124.75,8.0174]
[1741810704213,0.05925251,124.76,124.75,21.33845895]
[1741810705715,0.05925251,124.76,124.75,13.32105895]
[1741810705915,0.05925251,124.76,124.74,39.19881154]
[1741810706116,0.05925251,124.76,124.74,31.18111154]
[1741810706312,8.07615251,124.76,124.74,31.18111154]
[1741810707615,0.05925251,124.76,124.74,31.18111154]
[1741810708316,0.05925251,124.76,124.75,8.0174]
[1741810708812,0.05925251,124.76,124.74,39.19881154]
[1741810709416,8.07605251,124.76,124.74,39.19881154]
[1741810710014,0.05925251,124.76,124.74,39.19881154]
[1741810711321,0.05925251,124.76,124.74,8.07881154]
[1741810712519,44.50031146,124.76,124.69,13.32105895]
[1741810712720,13.32105895,124.74,124.69,13.32105895]
[1741810713020,8.0201,124.71,124.69,8.021]
[1741810713827,8.076903,124.71,124.69,8.08096054]
[1741810714327,8.0206,124.7,124.69,0.05996054]
[1741810714530,0.056803,124.71,124.65,13.32105895]
[1741810714531,13.37786195,124.71,124.65,13.32105895]
[1741810714732,13.32105895,124.7,124.65,13.32105895]
[1741810715334,8.0217,124.69,124.66,8.0228]
[1741810715528,44.44105895,124.73,124.67,13.32105895]
[1741810715832,0.06128475,124.69,124.68,13.32105895]
[1741810716035,0.06128475,124.69,124.67,8.0223]
[1741810716036,8.0203,124.71,124.67,52.46335895]
[1741810716229,0.06049257,124.7,124.67,52.5148171]
[1741810717542,0.06049257,124.7,124.67,44.4925171]
[1741810717834,0.06049257,124.7,124.68,8.0218]
[1741810719237,0.06049257,124.7,124.67,44.4925171]
[1741810719238,0.06049257,124.7,124.67,52.5147171]
[1741810719637,0.06049257,124.7,124.67,44.4925171]
[1741810721837,0.06049257,124.7,124.69,8.0213]
[1741810727437,13.32105895,124.76,124.73,8.0182]
[1741810727640,284.74012508,124.77,124.74,13.32105895]
[1741810727641,44.24012508,124.77,124.74,13.32105895]
[1741810728239,52.25662508,124.77,124.74,13.32105895]
[1741810728537,44.24012508,124.77,124.73,13.32105895]
[1741810728737,8.0172,124.76,124.74,0.05808365]
[1741810728930,57.61335993,124.77,124.74,0.05808365]
[1741810729241,8.0174,124.75,124.74,0.05808365]
[1741810729542,13.37323485,124.77,124.74,0.05808365]
[1741810730241,8.0173,124.76,124.74,0.05808365]
[1741810730437,13.37323485,124.77,124.74,0.05808365]
[1741810731139,21.38973485,124.77,124.74,8.07608365]
[1741810731338,13.37323485,124.77,124.74,0.05808365]
[1741810732044,8.0169,124.76,124.74,0.05808365]
[1741810732537,21.38993485,124.77,124.74,0.05808365]
[1741810732742,13.37323485,124.77,124.74,0.05808365]
[1741810733345,8.0168,124.76,124.74,0.05808365]
[1741810733641,13.37323485,124.77,124.74,0.05808365]
[1741810734846,8.0174,124.75,124.74,0.05808365]
[1741810737950,21.33845895,124.75,124.74,0.05808365]
[1741810738150,13.32105895,124.74,124.7,15.46705895]
[1741810738654,13.32105895,124.74,124.7,2.146]
[1741810739049,13.32105895,124.73,124.69,31.1]
[1741810739351,8.0194,124.72,124.71,0.05289722]
[1741810740350,21.34045895,124.72,124.71,0.05289722]
[1741810741749,8.0194,124.72,124.71,0.05289722]
[1741810742049,21.34045895,124.72,124.71,0.05289722]
[1741810742247,21.34045895,124.72,124.67,19.62375895]
[1741810742248,8.0219,124.68,124.67,4.1998]
[1741810742743,13.32105895,124.71,124.66,13.32105895]
[1741810742952,13.32105895,124.67,124.53,240.56]
[1741810743152,13.32105895,124.62,124.58,4.131]
[1741810743345,0.05273275,124.61,124.59,0.05812893]
[1741810744451,8.0271,124.6,124.59,0.05812893]
[1741810744747,13.32105895,124.6,124.53,4.2339]
[1741810744953,13.32105895,124.58,124.53,17.55495895]
[1741810745154,13.32105895,124.58,124.53,48.65495895]
[1741810745654,8.0301,124.56,124.53,48.65495895]
[1741810746155,0.055771,124.56,124.53,48.7071167]
[1741810746357,0.055771,124.56,124.53,4.28605775]
[1741810746551,0.055771,124.56,124.53,0.05215775]
[1741810746759,20.8912334,124.55,124.47,31.1]
[1741810748051,0.05270385,124.52,124.5,0.05121828]
[1741810748757,8.0329,124.51,124.5,0.05121828]
[1741810749453,0.05270385,124.52,124.5,0.05121828]
[1741810750660,52.0112334,124.59,124.51,31.12]
[1741810750959,52.0112334,124.59,124.51,33.1344]
[1741810751264,8.0284,124.58,124.51,33.1344]
[1741810751658,0.05324981,124.56,124.53,0.05495215]
[1741810759067,20.8912334,124.54,124.45,31.12]
[1741810759363,8.0321,124.53,124.46,8.0358]
[1741810759563,52.0112334,124.54,124.46,8.0358]
[1741810760166,0.06112795,124.51,124.49,0.05410505]
[1741810760668,0.06112795,124.51,124.5,8.0335]
[1741810761267,0.06112795,124.51,124.49,0.05410505]
[1741810766778,8.09402795,124.51,124.49,0.05410505]
[1741810766975,0.06112795,124.51,124.49,0.05410505]
[1741810767279,0.06112795,124.51,124.5,8.0335]
[1741810768976,52.0112334,124.58,124.54,8.0305]
[1741810769677,8.0294,124.57,124.53,8.0312]
[1741810770180,0.05333212,124.56,124.54,0.0536958]
[1741810770376,0.05333212,124.56,124.55,8.0303]
[1741810770580,0.05333212,124.56,124.54,0.0536958]
[1741810771487,0.05333212,124.56,124.53,8.0311]
[1741810772287,0.05333212,124.56,124.54,8.0308]
[1741810772483,0.05333212,124.56,124.54,8.08527901]
[1741810773884,8.08313212,124.56,124.54,0.05447901]
[1741810774079,0.05333212,124.56,124.54,0.05447901]
[1741810775187,8.08323212,124.56,124.54,0.05447901]
[1741810775386,0.05333212,124.56,124.55,8.0303]
[1741810775588,0.05333212,124.56,124.54,0.05447901]
[1741810776590,0.05333212,124.56,124.55,8.0303]
[1741810776784,31.12,124.6,124.54,0.05447901]
[1741810776985,44.24012508,124.61,124.54,31.17447901]
[1741810777192,52.26682508,124.61,124.58,8.0277]
[1741810777589,88.71234633,124.59,124.58,8.0277]
[1741810780990,72.83542003,124.6,124.57,52.05228544]
[1741810781993,72.83542003,124.6,124.58,2.0015]
[1741810782194,72.83542003,124.6,124.59,8.0277]
[1741810782389,72.83542003,124.6,124.58,2.0015]
[1741810782597,72.83542003,124.6,124.57,0.06105204]
[1741810783692,80.86282003,124.6,124.57,8.08975204]
[1741810783889,80.86282003,124.6,124.57,0.06105204]
[1741810784196,8.0284,124.58,124.57,0.06105204]
[1741810786499,32.02145749,124.6,124.57,0.06105204]
[1741810787601,11.13022409,124.6,124.57,0.06105204]
[1741810787900,44.36695223,124.6,124.57,0.06105204]
[1741810789201,8.0283,124.59,124.57,0.06105204]
[1741810789597,52.39425223,124.6,124.58,8.0283]
[1741810790194,52.39425223,124.6,124.57,0.06105204]
[1741810790396,0.05131471,124.6,124.57,8.08975204]
[1741810790703,20.94254811,124.6,124.57,0.06105204]
[1741810791202,28.96994811,124.6,124.57,0.06105204]
[1741810791501,28.96994811,124.6,124.57,8.08995204]
[1741810792003,8.0279,124.59,124.57,0.06105204]
[1741810793903,8.0284,124.58,124.57,0.06105204]
[1741810797298,8.0306,124.55,124.52,2.0279]
[1741810797607,51.9712334,124.58,124.5,33.2351]
[1741810798004,8.0301,124.56,124.5,33.2351]
[1741810798203,8.0301,124.56,124.53,8.0313]
[1741810798404,8.08688151,124.56,124.53,8.08756903]
[1741810800210,0.05678151,124.56,124.55,8.0303]
[1741810806116,0.05678151,124.56,124.54,8.0308]
[1741810806510,0.05678151,124.56,124.53,0.05626903]
[1741810806810,8.08678151,124.56,124.53,8.08736903]
[1741810807111,8.08678151,124.56,124.53,0.05626903]
[1741810807313,0.05678151,124.56,124.53,0.05626903]
[1741810807513,0.05678151,124.56,124.54,20.8912334]
[1741810807706,0.05678151,124.56,124.55,39.1103]
[1741810809002,0.05678151,124.56,124.54,20.8912334]
[1741810809003,0.05678151,124.56,124.53,31.13626903]
[1741810809210,0.05678151,124.56,124.53,0.05626903]
[1741810810113,0.05678151,124.56,124.55,8.0303]
[1741810812114,0.05678151,124.56,124.54,8.0306]
[1741810812317,8.08678151,124.56,124.53,0.05626903]
[1741810812711,0.05678151,124.56,124.53,0.05626903]
[1741810813307,0.05678151,124.56,124.55,8.0303]
[1741810813714,0.05678151,124.56,124.53,0.05626903]
[1741810813916,52.00801491,124.56,124.53,0.05626903]
[1741810814215,31.11678151,124.56,124.53,0.05626903]
[1741810814412,31.11678151,124.56,124.54,8.0306]
[1741810814715,0.05678151,124.56,124.54,8.0306]
[1741810814906,0.05678151,124.56,124.53,0.05626903]
[1741810815107,0.05678151,124.56,124.53,8.08756903]
[1741810815514,0.05678151,124.56,124.53,0.05626903]
[1741810816113,0.05678151,124.56,124.54,8.0306]
[1741810816313,0.05678151,124.56,124.53,0.05626903]
[1741810817114,8.08678151,124.56,124.53,8.08756903]
[1741810817319,8.08678151,124.56,124.53,0.05626903]
[1741810817617,0.05678151,124.56,124.53,0.05626903]
[1741810818219,8.08678151,124.56,124.53,0.05626903]
[1741810818415,0.05678151,124.56,124.53,0.05626903]
[1741810819118,0.05678151,124.56,124.54,8.0306]
[1741810819322,0.05678151,124.56,124.53,0.05626903]
[1741810819821,0.05678151,124.56,124.54,8.0309]
[1741810821120,8.08688151,124.56,124.53,8.08766903]
[1741810822120,8.0303,124.55,124.53,8.08766903]
[1741810822516,8.0303,124.55,124.53,0.05626903]
[1741810823521,8.08658151,124.56,124.53,8.08736903]
[1741810823822,8.08658151,124.56,124.53,0.05626903]
[1741810824118,0.05678151,124.56,124.54,8.0306]
[1741810824315,0.05678151,124.56,124.53,0.05626903]
[1741810825127,0.05678151,124.56,124.55,8.0303]
[1741810829828,0.05678151,124.56,124.54,8.0306]
[1741810830431,0.05678151,124.56,124.53,0.05626903]
[1741810830625,0.05678151,124.56,124.55,8.0303]
[1741810831823,0.05678151,124.56,124.53,0.05626903]
[1741810832525,8.0309,124.54,124.53,0.05626903]
[1741810836831,8.0306,124.55,124.53,0.05626903]
[1741810837538,8.0309,124.54,124.53,0.05626903]
[1741810837732,44.37241903,124.56,124.53,0.05626903]
[1741810838034,52.40231903,124.56,124.53,8.08726903]
[1741810839228,8.08668151,124.56,124.54,8.0308]
[1741810839928,0.05678151,124.56,124.54,8.0308]